bitfinex-derivatives/quotes_ETHF0:USTF0_20251119
["timestamp","ask_amount","ask_price","bid_price","bid_amount"]
[1763531610488,0.54007,3002.1,3002.0,0.89198364]
[1763531610680,3.2078,3002.5,3001.8,4.09978364]
[1763531610681,0.5401,3001.9,3001.8,4.09978364]
[1763531610986,0.54009,3002.0,3001.8,4.64321187]
[1763531611183,3.21046807,3003.5,3002.7,0.53995]
[1763531611485,3.21046807,3003.5,3001.8,4.39811645]
[1763531611486,3.2078,3003.0,3002.6,0.53997]
[1763531611680,0.53994,3002.8,3002.6,0.53997]
[1763531611881,0.00266807,3003.5,3003.0,0.5399]
[1763531612184,0.53987,3003.2,3003.0,0.5399]
[1763531612387,0.53991,3003.0,3002.7,4.6376051]
[1763531612579,0.53991,3003.0,3002.8,0.53993]
[1763531612781,0.53988,3003.2,3002.9,0.53991]
[1763531612982,0.00266807,3003.5,3002.9,0.53991]
[1763531613191,0.53987,3003.2,3002.7,4.0976551]
[1763531613891,0.53987,3003.2,3003.0,0.5399]
[1763531614181,0.53987,3003.2,3002.9,0.5399]
[1763531614387,0.53987,3003.2,3003.0,0.5399]
[1763531614588,0.53984,3003.4,3003.2,0.53986]
[1763531614886,0.53986,3003.3,3003.0,0.54488259]
[1763531615075,0.53986,3003.3,3003.1,0.53988]
[1763531615684,0.00266807,3003.5,3003.3,0.53985]
[1763531615988,0.00266807,3003.5,3003.3,1.4297051]
[1763531616183,0.00266807,3003.5,3003.4,0.8898551]
[1763531616580,0.00266807,3003.5,3003.3,1.4297051]
[1763531616983,0.00266807,3003.5,3003.4,0.8898551]
[1763531617190,0.00266807,3003.5,3003.3,1.72684822]
[1763531617591,3.74744,3004.5,3003.4,2.370356]
[1763531617894,3.2078,3004.9,3004.8,0.53958]
[1763531618593,3.21041365,3004.9,3004.8,0.00378741]
[1763531618780,0.00261365,3004.9,3004.8,0.00378741]
[1763531618985,0.00261365,3004.9,3004.8,1.19279718]
[1763531619487,0.00261365,3004.9,3004.8,0.00378741]
[1763531619685,0.00261365,3004.9,3004.8,1.19279718]
[1763531619992,0.00261365,3004.9,3004.8,1.78730207]
[1763531620188,0.7389,3005.8,3004.8,1.78730207]
[1763531620189,3.2078,3005.8,3005.3,0.53949]
[1763531620396,3.2078,3006.2,3006.1,0.53935]
[1763531620692,3.2078,3006.2,3006.1,0.89127878]
[1763531621095,3.2078,3006.2,3005.9,1.18837171]
[1763531621096,3.20963895,3006.2,3006.0,0.53935]
[1763531621283,3.20963895,3006.2,3006.0,1.43062878]
[1763531621484,3.74897895,3006.2,3006.0,0.89127878]
[1763531622192,3.74897895,3006.2,3005.8,3.21279259]
[1763531622193,0.53936,3006.1,3005.8,3.21279259]
[1763531622392,0.53937,3006.0,3005.8,3.21279259]
[1763531622594,0.7389,3005.8,3004.7,3.56535999]
[1763531622786,0.53956,3004.9,3004.3,4.39617171]
[1763531622983,0.53971,3004.1,3003.6,1.18837171]
[1763531623290,0.7389,3005.1,3003.6,1.18837171]
[1763531623291,0.53968,3004.3,3003.7,3.2078]
[1763531623486,0.53971,3004.1,3003.8,0.53975]
[1763531623888,0.00499259,3004.3,3003.8,1.18837171]
[1763531624188,0.54466259,3004.3,3003.8,0.00359696]
[1763531624394,0.00499259,3004.3,3003.8,0.00359696]
[1763531624593,0.53973,3004.0,3003.8,0.00359696]
[1763531624890,0.5437087,3004.0,3003.8,0.00359696]
[1763531626193,0.0039787,3004.0,3003.8,0.54334696]
[1763531627097,0.0039787,3004.0,3003.8,0.00359696]
[1763531627295,0.0039787,3004.0,3003.8,1.73171867]
[1763531627793,0.0039787,3004.0,3003.8,0.00359696]
[1763531628096,0.0039787,3004.0,3003.8,1.73171867]
[1763531628688,2.46975291,3006.4,3004.6,3.2078]
[1763531628988,0.7389,3006.4,3005.9,3.2078]
[1763531629192,0.7389,3006.4,3005.8,1.18837171]
[1763531629597,0.53938,3005.9,3005.8,3.21279259]
[1763531629801,0.53935,3006.1,3005.8,0.00499259]
[1763531630093,3.94834766,3006.4,3005.8,0.00499259]
[1763531630494,0.53937,3006.0,3005.8,0.00499259]
[1763531630695,3.94834766,3006.4,3005.8,0.00499259]
[1763531631396,3.94834766,3006.4,3005.8,3.21279259]
[1763531631698,3.20944766,3006.4,3005.8,3.21279259]
[1763531631997,3.20944766,3006.4,3006.0,0.53935]
[1763531632197,3.20944766,3006.4,3006.0,0.54281155]
[1763531632598,3.20944766,3006.4,3006.3,3.2078]
[1763531632599,0.00164766,3006.4,3006.3,3.2078]
[1763531632989,0.00164766,3006.4,3006.0,0.00346155]
[1763531633198,0.53934,3006.2,3006.0,0.00346155]
[1763531633595,0.00164766,3006.4,3006.0,0.00346155]
[1763531633803,0.53933,3006.2,3006.0,0.00346155]
[1763531634403,0.00164766,3006.4,3006.0,0.00346155]
[1763531634596,0.00164766,3006.4,3006.2,3.2078]
[1763531634790,0.00164766,3006.4,3006.3,0.53931]
[1763531635300,3.2078,3007.4,3006.8,0.53922]
[1763531636006,3.2078,3007.4,3006.7,3.74704]
[1763531636204,3.2078,3007.4,3006.7,3.2078]
[1763531636399,3.74692,3007.4,3006.7,3.2078]
[1763531636900,0.53914,3007.3,3006.7,3.2078]
[1763531637093,0.53914,3007.3,3006.8,0.53921]
[1763531637495,3.2078,3007.4,3006.7,3.2078]
[1763531637706,0.7644,3007.2,3006.7,3.2078]
[1763531637899,0.53922,3006.9,3006.7,3.2078]
[1763531638507,3.2078,3007.4,3006.7,3.2078]
[1763531638999,0.53922,3006.8,3006.7,3.2078]
[1763531639199,0.53918,3007.1,3006.7,3.2078]
[1763531639803,1.1545761,3009.5,3007.7,3.2078]
[1763531639998,0.7644,3009.3,3009.2,3.2078]
[1763531640204,0.7644,3009.3,3008.7,3.2078]
[1763531640508,0.7644,3009.3,3008.3,0.00499259]
[1763531640509,0.53893,3008.4,3008.3,0.00499259]
[1763531640903,0.53891,3008.6,3008.3,0.00499259]
[1763531641206,0.00344403,3008.6,3008.3,0.00849017]
[1763531641407,0.54235403,3008.6,3008.3,0.00849017]
[1763531641813,0.53893,3008.5,3008.3,0.00849017]
[1763531644317,0.53897,3008.2,3008.1,3.2078]
[1763531644509,0.53913,3007.4,3007.1,3.2078]
[1763531644709,3.2078,3007.7,3007.1,3.2078]
[1763531645009,0.53915,3007.2,3007.0,0.042]
[1763531645208,4.51135,3007.2,3007.0,0.042]
[1763531645512,4.51135,3007.2,3007.0,0.04434156]
[1763531645714,3.2078,3007.2,3007.0,0.04434156]
[1763531645912,3.74696,3007.2,3007.0,0.04434156]
[1763531646308,0.00499259,3007.4,3007.0,3.25214156]
[1763531646809,0.00499259,3007.4,3007.0,3.79132156]
[1763531647013,0.00499259,3007.4,3007.0,3.25214156]
[1763531647214,0.00499259,3007.4,3007.2,0.53914]
[1763531647415,3.74679,3008.1,3007.6,0.53906]
[1763531647622,3.2078,3009.2,3007.6,3.2078]
[1763531647817,3.2078,3008.7,3008.0,3.2078]
[1763531648021,0.53901,3008.0,3007.6,3.2078]
[1763531648317,3.2078,3008.3,3007.7,0.53905]
[1763531648527,0.53906,3007.7,3007.6,3.2078]
[1763531648821,0.53903,3007.9,3007.6,3.2078]
[1763531649011,0.53905,3007.8,3007.6,3.2078]
[1763531649420,2.18697527,3008.3,3007.6,3.2078]
[1763531649623,2.18697527,3008.3,3007.8,3.2078]
[1763531649624,0.53896,3008.3,3007.8,3.2078]
[1763531649813,3.2078,3008.7,3007.9,0.53901]
[1763531650011,0.53901,3008.0,3007.8,3.2078]
[1763531650321,3.2078,3008.7,3007.8,3.2078]
[1763531650715,0.539,3008.1,3007.8,3.74683]
[1763531650918,3.2078,3008.7,3008.1,0.53898]
[1763531650919,0.53894,3008.4,3008.1,0.53898]
[1763531651215,2.82001918,3010.5,3007.8,3.2078]
[1763531651216,3.2078,3009.1,3009.0,0.53883]
[1763531651410,11.98,3010.3,3008.0,0.2226]
[1763531651411,3.2078,3009.7,3009.4,0.53875]
[1763531651612,3.2078,3010.1,3009.6,0.7395]
[1763531651821,0.7644,3012.0,3010.3,3.2078]
[1763531652018,0.53843,3011.3,3011.1,3.2078]
[1763531652209,0.76748212,3011.2,3011.1,0.00422352]
[1763531652410,0.00308212,3011.2,3011.1,0.00422352]
[1763531653011,0.53822,3012.5,3011.2,0.7617]
[1763531653217,0.53822,3012.5,3012.3,3.2078]
[1763531653723,0.53821,3012.5,3012.3,3.2078]
[1763531654112,0.53825,3012.2,3012.1,0.00498389]
[1763531654623,0.53825,3012.3,3012.1,0.00498389]
[1763531655115,0.53822,3012.5,3012.1,0.00498389]
[1763531655421,0.53814,3012.9,3012.3,3.2078]
[1763531655623,0.53813,3013.0,3012.8,3.2078]
[1763531655824,3.2078,3013.5,3012.8,3.2078]
[1763531656024,3.2078,3013.5,3012.4,3.2078]
[1763531656217,3.2078,3013.5,3012.1,0.00498389]
[1763531656218,3.2078,3013.5,3012.5,3.2078]
[1763531656524,3.2078,3013.1,3012.5,3.2078]
[1763531656719,3.2078,3013.1,3012.1,0.00498389]
[1763531656915,0.53825,3012.3,3012.1,0.00498389]
[1763531657317,3.9722,3012.8,3012.1,0.00498389]
[1763531657520,0.53825,3012.2,3012.1,0.00498389]
[1763531657721,0.53838,3011.5,3011.2,3.2078]
[1763531658027,0.53831,3011.9,3011.2,3.2078]
[1763531658227,3.2078,3012.4,3011.4,3.2078]
[1763531658619,0.00495487,3012.2,3011.6,0.00498389]
[1763531659015,0.53832,3011.9,3011.6,0.00498389]
[1763531659220,0.00495487,3012.2,3011.8,3.2078]
[1763531659421,0.41485276,3012.7,3011.8,3.2078]
[1763531659620,0.41485276,3012.7,3011.7,6.0]
[1763531659621,3.2078,3013.4,3012.4,3.2078]
[1763531659821,0.5382,3012.5,3012.4,3.2078]
[1763531660019,3.2078,3013.2,3012.4,3.2078]
[1763531660219,0.53819,3012.6,3012.4,3.2078]
[1763531660419,0.53828,3012.1,3011.9,3.2078]
[1763531660626,3.2078,3012.7,3011.9,3.2078]
[1763531660927,3.2078,3013.1,3012.3,3.2078]
[1763531661229,0.53819,3012.6,3012.3,3.2078]
[1763531661433,3.2078,3013.1,3012.3,3.2078]
[1763531661623,3.2078,3013.1,3012.7,3.2078]
[1763531661932,0.53796,3013.9,3012.8,1.29985]
[1763531662118,0.53809,3013.2,3013.0,0.00498389]
[1763531662629,0.53808,3013.2,3013.0,0.00498389]
[1763531664730,2.603,3014.9,3013.1,3.2078]
[1763531664920,0.997,3014.4,3014.2,3.2078]
[1763531665121,0.997,3014.4,3013.8,3.2078]
[1763531665430,0.53796,3013.9,3013.8,0.00365149]
[1763531665832,3.2078,3013.9,3013.8,0.00365149]
[1763531666127,3.74575,3014.0,3013.8,0.00365149]
[1763531666328,0.53795,3014.0,3013.8,0.00365149]
[1763531666635,0.53795,3013.9,3013.8,0.00365149]
[1763531667046,0.53799,3013.7,3013.6,1.80933768]
[1763531667328,0.53808,3013.2,3013.0,0.00498389]
[1763531667523,3.2078,3013.1,3013.0,0.00498389]
[1763531668033,3.21062235,3013.1,3013.0,0.00858811]
[1763531670427,0.53824,3012.3,3012.1,3.2078]
[1763531670736,0.53828,3012.1,3011.7,3.2078]
[1763531670929,0.53828,3012.1,3011.7,3.74614]
[1763531671129,0.53825,3012.3,3011.8,0.53832]
[1763531671331,0.53825,3012.3,3011.8,0.54067707]
[1763531671528,0.00498389,3012.4,3011.9,0.53831]
[1763531671836,0.5383,3012.0,3011.8,0.00235707]
[1763531672036,3.2078,3012.3,3011.8,0.00235707]
[1763531672231,3.2078,3012.3,3012.0,0.53829]
[1763531672536,3.2078,3012.3,3011.8,0.00235707]
[1763531673035,0.51828,3012.1,3011.8,0.00235707]
[1763531673235,0.00498389,3012.4,3012.1,0.53826]
[1763531673431,0.00498389,3012.4,3012.2,0.53825]
[1763531674236,3.74595,3012.8,3012.4,0.53821]
[1763531674534,3.74596,3012.8,3012.3,0.53823]
[1763531674734,0.53819,3012.6,3012.1,3.2078]
[1763531674935,3.2078,3012.8,3012.1,3.2078]
[1763531675129,0.5382,3012.6,3012.1,3.74606]
[1763531675331,3.2078,3012.8,3012.1,3.2078]
[1763531675538,0.53817,3012.7,3012.4,0.53821]
[1763531675840,0.53819,3012.6,3012.2,0.53824]
[1763531676239,3.2078,3013.3,3012.6,0.53817]
[1763531676444,0.997,3013.6,3012.3,3.74603]
[1763531676638,3.2078,3013.4,3012.7,3.2078]
[1763531676834,0.53815,3012.8,3012.7,3.2078]
[1763531677238,1.63725,3012.8,3012.7,3.2078]
[1763531677444,1.64086976,3012.8,3012.7,3.2078]
[1763531678042,1.64086976,3012.8,3011.8,0.00235707]
[1763531678043,0.53824,3012.3,3012.2,3.2078]
[1763531678344,1.10271976,3012.8,3012.2,3.2078]
[1763531678641,0.00361976,3012.8,3012.3,3.2078]
[1763531679050,0.54177976,3012.8,3012.4,0.53821]
[1763531679240,0.00361976,3012.8,3012.3,3.2078]
[1763531680145,0.00361976,3012.8,3012.4,1.18837171]
[1763531680349,0.53817,3012.7,3012.3,4.93440171]
[1763531680647,0.00361976,3012.8,3012.4,1.18837171]
[1763531680939,0.53822,3012.4,3012.3,3.2078]
[1763531681139,1.10271976,3012.8,3012.3,3.2078]
[1763531681644,0.53822,3012.4,3012.3,3.2078]
[1763531682234,0.53822,3012.4,3012.3,4.39669591]
[1763531682748,0.53822,3012.4,3012.3,0.89234416]
[1763531683441,0.5382,3012.5,3012.3,3.2078]
[1763531683649,0.5382,3012.5,3012.3,4.99054121]
[1763531683943,3.2078,3012.9,3012.3,4.99054121]
[1763531683944,3.2078,3013.3,3012.6,0.53818]
[1763531684144,0.53808,3013.2,3013.1,0.89217533]
[1763531684851,0.53808,3013.2,3013.0,0.89217533]
[1763531685038,0.53944694,3013.2,3013.0,1.18956711]
[1763531685435,0.53944694,3013.2,3013.1,0.89224691]
[1763531686144,0.53822,3012.4,3012.2,1.78274121]
[1763531686441,3.2078,3014.6,3012.8,1.1348]
[1763531686642,0.53796,3013.9,3013.7,1.78391992]
[1763531686952,0.53801,3013.6,3013.4,0.00498389]
[1763531687141,4.3069,3014.2,3013.4,0.00498389]
[1763531687350,0.53794,3014.0,3013.8,3.2078]
[1763531687742,3.2078,3014.6,3013.8,3.2078]
[1763531687949,3.2078,3014.6,3013.9,0.53793]
[1763531688145,3.74563,3014.6,3013.9,1.78391992]
[1763531688344,0.5379,3014.2,3014.1,1.78391992]
[1763531688547,0.53793,3014.1,3013.9,1.78348559]
[1763531688840,3.2078,3014.6,3013.9,1.78653939]
[1763531689048,3.2078,3014.6,3014.2,5.90768559]
[1763531689346,0.53788,3014.4,3014.2,4.99128559]
[1763531689650,0.53786,3014.4,3014.2,3.74569]
[1763531689845,3.2078,3014.6,3014.3,1.78286966]
[1763531690239,3.2078,3015.2,3014.3,1.78286966]
[1763531690444,3.2078,3015.2,3014.2,4.1242]
[1763531690445,0.53777,3015.0,3014.7,0.5378]
[1763531690647,3.2078,3015.2,3014.6,1.78286966]
[1763531690856,3.2078,3015.2,3014.9,0.53776]
[1763531691146,0.53778,3014.9,3014.6,3.2078]
[1763531691339,0.5378,3014.8,3014.6,3.2078]
[1763531691544,0.53776,3015.0,3014.6,3.2078]
[1763531691751,0.53779,3014.8,3014.6,3.2078]
[1763531691946,0.53783,3014.6,3014.3,0.53787]
[1763531692252,3.2078,3015.2,3014.5,0.53783]
[1763531692845,0.53785,3014.5,3014.3,1.78286966]
[1763531693045,0.53788,3014.3,3014.2,3.2078]
[1763531693449,0.53793,3014.0,3013.9,0.0030538]
[1763531693643,3.74573,3014.0,3013.9,0.0030538]
[1763531693850,1.63712,3013.5,3013.4,0.00498389]
[1763531694044,0.53813,3012.9,3012.8,3.2078]
[1763531694446,0.53817,3012.7,3012.5,1.78286966]
[1763531694642,0.5382,3012.5,3012.4,3.2078]
[1763531694851,0.54100941,3012.5,3012.4,0.00424716]
[1763531695247,0.00495495,3012.8,3012.4,11.53312682]
[1763531695450,0.00495495,3012.8,3012.6,3.2078]
[1763531695651,0.54311495,3012.8,3012.6,3.2078]
[1763531696451,0.00495495,3012.8,3012.6,3.74598]
[1763531696652,0.54311495,3012.8,3012.6,3.2078]
[1763531696851,0.53819,3012.6,3012.4,0.00424716]
[1763531697260,0.54310495,3012.8,3012.4,0.54245716]
[1763531697453,0.54310495,3012.8,3012.6,3.2078]
[1763531698251,1.1545761,3015.2,3013.6,1.0189]
[1763531698448,0.53775,3015.1,3014.9,3.2078]
[1763531698652,0.53775,3015.1,3014.9,0.00402794]
[1763531698954,0.53783,3014.6,3014.4,3.2078]
[1763531699155,0.53792,3014.1,3014.0,3.2078]
[1763531699756,0.54158318,3014.1,3014.0,3.21042356]
[1763531700771,0.00366318,3014.1,3014.0,3.21042356]
[1763531701156,0.53783,3014.6,3014.0,3.21042356]
[1763531701360,0.53783,3014.6,3014.5,3.2078]
[1763531702068,6.53783,3014.6,3014.5,3.2078]
[1763531702264,0.53792,3014.1,3014.0,0.00262356]
[1763531702956,0.53797,3013.8,3013.7,0.00497521]
[1763531703978,3.21103271,3013.8,3013.7,0.00762124]
[1763531704478,0.00323271,3013.8,3013.7,1.24e-06]
[1763531705382,9.21103271,3013.8,3013.7,1.24e-06]
[1763531705876,0.53808,3013.2,3013.1,3.2078]
[1763531706976,0.53808,3013.2,3013.1,0.00373738]
[1763531707177,0.53808,3013.2,3012.8,0.00497521]
[1763531707178,0.53822,3012.4,3012.2,4.98556543]
[1763531707379,0.53822,3012.4,3012.2,3.2078]
[1763531708179,0.53822,3012.4,3012.2,3.21087292]
[1763531708884,3.74602,3012.4,3012.2,0.00307292]
[1763531709086,9.45402,3012.4,3012.2,0.00307292]
[1763531709782,8.317,3012.3,3012.2,0.00307292]
[1763531710076,0.53825,3012.2,3012.0,8.13e-06]
[1763531710279,3.2078,3012.4,3012.0,8.13e-06]
[1763531710280,3.71297521,3012.6,3012.0,8.13e-06]
[1763531710674,0.53826,3012.2,3012.0,8.13e-06]
[1763531711084,0.53826,3012.2,3012.0,0.00290964]
[1763531711579,0.9967,3012.1,3012.0,0.00290964]
[1763531712681,0.53826,3012.2,3012.0,0.00290964]
[1763531713280,4.38726,3012.2,3012.0,0.00290964]
[1763531713783,0.9967,3012.1,3011.3,3.2078]
[1763531713984,0.5384,3011.4,3011.3,3.2078]
[1763531714982,0.5384,3011.4,3011.3,3.21058275]
[1763531714983,0.54227451,3011.4,3011.3,3.21058275]
[1763531715281,0.54227451,3011.4,3011.3,0.00278275]
[1763531715986,0.00387451,3011.4,3011.3,0.00278275]
[1763531716683,0.54227451,3011.4,3011.3,0.00278275]
[1763531717082,0.00387451,3011.4,3011.3,0.00278275]
[1763531719476,3.2078,3012.9,3011.4,1.0189]
[1763531719682,0.5382,3012.5,3012.3,3.2078]
[1763531720586,0.54125362,3012.5,3012.3,3.2078]
[1763531721186,0.53829,3012.0,3011.9,3.2078]
[1763531721785,0.00305362,3012.5,3011.9,3.2078]
[1763531721982,0.00305362,3012.5,3012.4,3.2078]
[1763531723194,0.00497521,3012.6,3012.4,3.2078]
[1763531723387,3.2078,3013.5,3012.8,1.0354]
[1763531723388,0.53812,3013.0,3012.8,1.0354]
[1763531723581,0.53812,3013.0,3012.9,3.2078]
[1763531724185,0.54149046,3013.0,3012.9,3.2078]
[1763531724699,0.00337046,3013.0,3012.9,3.2078]
[1763531729292,1.72647046,3013.0,3012.9,3.2078]
[1763531732896,0.00337046,3013.0,3012.9,5.36883]
[1763531733201,0.00337046,3013.0,3012.9,6.60846543]
[1763531733394,0.5381,3013.1,3012.9,4.8307]
[1763531733593,0.5381,3013.1,3013.0,1.18818467]
[1763531734097,0.5381,3013.1,3013.0,2.81108467]
[1763531734398,0.5416141,3013.1,3013.0,1.6229]
[1763531734695,0.5416141,3013.1,3012.9,4.98556543]
[1763531734900,0.5416141,3013.1,3013.0,1.18822393]
[1763531735491,3.2078,3014.8,3013.6,1.6229]
[1763531735699,3.2078,3014.8,3013.7,3.2078]
[1763531735700,0.53797,3013.8,3013.7,3.2078]
[1763531736396,0.00177786,3013.8,3013.7,3.21162944]
[1763531737496,0.00177786,3013.8,3013.7,4.83452944]
[1763531739207,0.00177786,3013.8,3013.7,6.0226523]
[1763531739394,3.2078,3014.8,3014.1,1.6229]
[1763531739395,0.53791,3014.2,3014.1,1.6229]
[1763531739599,0.53791,3014.2,3014.1,4.8307]
[1763531742603,0.53783,3014.6,3014.4,2.6218]
[1763531742904,0.53783,3014.6,3014.5,3.2078]
[1763531743797,0.5379,3014.2,3014.1,4.39305215]
[1763531743997,0.5379,3014.2,3014.1,4.8307]
[1763531744299,2.261,3014.2,3014.1,3.2078]
[1763531744500,0.5379,3014.2,3014.1,3.2078]
[1763531744702,2.261,3014.2,3014.1,3.2078]
[1763531745906,0.9985,3014.4,3013.8,0.00497521]
[1763531745907,2.26105,3013.9,3013.8,0.00497521]
[1763531746303,0.53795,3013.9,3013.8,0.00497521]
[1763531746504,0.53794,3014.0,3013.8,0.00497521]
[1763531746810,0.53794,3014.0,3013.8,0.8946925]
[1763531747511,0.53794,3014.0,3013.9,1.6229]
[1763531747804,0.53794,3014.0,3013.8,0.8946925]
[1763531749402,3.2078,3014.8,3013.9,2.51261729]
[1763531749606,1.7231,3014.0,3013.9,4.09751729]
[1763531749805,1.7231,3014.0,3013.9,3.2078]
[1763531750705,2.26105,3013.9,3013.8,0.00497521]
[1763531751098,5.46885,3013.9,3013.8,0.00497521]
[1763531752606,2.26105,3013.9,3013.8,0.00497521]
[1763531755105,5.46885,3013.9,3013.8,0.00497521]
[1763531755611,5.46885,3013.9,3013.8,5.21e-06]
[1763531755906,4.9309,3013.9,3013.8,5.21e-06]
[1763531757212,0.53794,3014.0,3013.8,5.21e-06]
[1763531757814,0.00497001,3014.2,3014.1,1.6019]
[1763531758006,3.2078,3014.7,3014.3,1.6019]
[1763531758007,0.53785,3014.5,3014.3,1.6019]
[1763531758203,0.5379,3014.2,3014.1,1.19017196]
[1763531758604,0.5379,3014.2,3014.1,0.89264471]
[1763531759004,0.5379,3015.0,3013.9,0.89264471]
[1763531759005,2.01513,3014.0,3013.9,0.89264471]
[1763531759917,2.01513,3014.0,3013.8,5.21e-06]
[1763531760109,0.53793,3014.0,3013.8,5.21e-06]
[1763531760312,0.53793,3014.0,3013.9,3.2078]
[1763531760508,0.53793,3014.1,3014.0,1.6019]
[1763531760809,0.5379,3014.2,3014.1,1.6019]
[1763531761215,3.2078,3014.7,3014.6,1.6019]
[1763531761417,0.53781,3014.7,3014.6,1.6019]
[1763531761616,0.53781,3014.7,3014.6,2.49468697]
[1763531763319,2.01504,3014.5,3014.4,3.2078]
[1763531763519,0.53784,3014.5,3014.4,6.5874496]
[1763531763717,0.53784,3014.5,3014.4,5.6941]
[1763531764017,0.53784,3014.5,3014.4,6.88513523]
[1763531764418,0.53784,3014.6,3014.4,6.88513523]
[1763531764622,6.149,3015.1,3014.5,1.6019]
[1763531764822,6.149,3015.1,3014.6,0.89327886]
[1763531765114,0.53781,3014.7,3014.6,0.89327886]
[1763531765319,0.53781,3014.7,3014.6,2.49517886]
[1763531765819,0.53781,3014.7,3014.6,0.89327886]
[1763531766016,2.01501,3014.7,3014.6,0.89327886]
[1763531766209,1.4772,3014.6,3014.5,0.89327886]
[1763531766616,3.2078,3015.2,3014.8,1.6019]
[1763531766812,0.53776,3015.0,3014.8,5.70300081]
[1763531767017,2.01496,3015.0,3014.8,4.10110081]
[1763531767217,1.4772,3014.9,3014.8,4.10110081]
[1763531767416,0.53776,3015.0,3014.8,4.10110081]
[1763531767417,0.53776,3015.0,3014.8,3.2078]
[1763531767617,0.53776,3015.0,3014.8,4.10086276]
[1763531768121,1.4772,3014.9,3014.8,0.89306276]
[1763531768324,1.4772,3014.9,3014.8,4.10086276]
[1763531768512,1.4772,3014.9,3014.8,0.21192276]
[1763531768712,1.4772,3014.5,3014.4,4.39883523]
[1763531769023,1.07867994,3014.5,3014.4,3.2078]
[1763531769224,0.53783,3014.6,3014.5,1.6019]
[1763531769419,0.53783,3014.6,3014.5,3.67733523]
[1763531770019,3.813,3015.3,3014.3,1.17452229]
[1763531770020,2.01506,3014.4,3014.3,1.17452229]
[1763531770221,0.53792,3014.1,3014.0,4.8097]
[1763531770416,0.53786,3014.4,3014.0,4.0922]
[1763531770623,0.5633,3015.0,3014.0,4.0922]
[1763531770817,2.0151,3014.2,3014.1,3.2078]
[1763531771424,0.5379,3014.2,3014.1,4.8097]
[1763531773133,0.53786,3014.4,3014.3,1.6019]
[1763531773434,3.2078,3015.4,3014.5,2.4863]
[1763531773629,3.2078,3015.4,3014.7,3.2078]
[1763531773832,0.53779,3014.8,3014.7,4.8097]
[1763531774034,0.53779,3014.8,3014.7,6.59590455]
[1763531774526,0.53777,3015.0,3014.9,1.6019]
[1763531776023,0.53779,3014.8,3014.7,4.8097]
[1763531776628,0.53788,3014.3,3014.2,1.78620455]
[1763531776829,0.53788,3014.3,3014.2,1.6019]
[1763531778025,0.7688,3015.5,3014.5,0.8844]
[1763531778026,3.2078,3015.2,3014.5,0.8844]
[1763531778232,0.53781,3014.7,3014.6,1.6019]
[1763531778728,1.4772,3014.8,3014.2,1.78620455]
[1763531778926,0.53788,3014.3,3014.2,3.38810455]
[1763531779127,3.2078,3014.8,3014.2,3.38810455]
[1763531779333,0.53788,3014.3,3014.2,1.6019]
[1763531781031,1.4772,3014.2,3014.1,3.2078]
[1763531781429,3.2078,3014.4,3013.8,5.21e-06]
[1763531781935,0.53795,3013.9,3013.8,5.21e-06]
[1763531783331,3.74575,3013.9,3013.8,5.21e-06]
[1763531788236,3.74575,3013.9,3013.8,1.39890521]
[1763531788441,5.15915,3013.9,3013.8,5.21e-06]
[1763531789636,3.74575,3013.9,3013.8,5.21e-06]
[1763531790543,0.53795,3013.9,3013.8,5.21e-06]
[1763531792252,3.74575,3013.9,3013.8,5.21e-06]
[1763531792435,3.74575,3013.9,3013.7,0.00382944]
[1763531792436,4.731,3013.8,3013.7,4.65e-06]
[1763531793240,9.6524,3013.8,3013.7,4.65e-06]
[1763531793444,9.65593681,3013.8,3013.7,4.65e-06]
[1763531795550,12.97353681,3013.8,3013.7,4.65e-06]
[1763531795748,0.53816,3012.8,3012.5,0.8844]
[1763531795944,0.53817,3012.7,3012.6,1.3989]
[1763531796549,3.74591,3013.0,3012.9,1.3989]
[1763531796754,3.74591,3013.0,3012.9,1.40185028]
[1763531797754,0.53811,3013.0,3012.9,1.40185028]
[1763531798655,1.95151,3013.0,3012.9,0.00295028]
[1763531799357,1.95157,3012.7,3012.6,5.49e-06]
[1763531799654,0.53836,3011.6,3011.5,2.2774]
[1763531799850,3.74616,3011.6,3011.5,2.2774]
[1763531800050,0.53834,3011.8,3011.7,1.3989]
[1763531800250,0.54246983,3011.8,3011.7,1.40297074]
[1763531800656,3.2078,3012.4,3011.7,1.40297074]
[1763531800862,0.53824,3012.3,3012.2,1.3989]
[1763531801248,0.53833,3011.8,3011.7,1.40297074]
[1763531801447,1.95173,3011.8,3011.7,0.00407074]
[1763531801756,1.9541207,3011.8,3011.7,0.00407074]
[1763531803558,10.1941207,3011.8,3011.7,0.00407074]
[1763531804258,1.9541207,3011.8,3011.7,0.00407074]
[1763531804458,10.1951207,3011.8,3011.7,0.00407074]
[1763531806162,10.1951207,3011.8,3011.7,7.4e-07]
[1763531807463,10.1961207,3011.8,3011.7,7.4e-07]
[1763531807864,0.0023907,3011.8,3011.7,1.39890074]
[1763531808261,0.0023907,3011.8,3011.7,7.4e-07]
[1763531808867,0.0023907,3011.8,3011.7,1.39890074]
[1763531810067,1.4157907,3011.8,3011.7,1.39890074]
[1763531810266,1.4157907,3011.8,3011.7,7.4e-07]
[1763531810569,0.0023907,3011.8,3011.7,1.39890074]
[1763531811269,0.0023907,3011.8,3011.7,7.4e-07]
[1763531812371,8.2433907,3011.8,3011.7,1.39890074]
[1763531812867,0.0023907,3011.8,3011.7,1.39890074]
[1763531813068,1.4157907,3011.8,3011.7,7.4e-07]
[1763531813272,0.0023907,3011.8,3011.7,1.39890074]
[1763531814564,1.4157907,3011.8,3011.7,1.39890074]
[1763531814971,1.9541207,3011.8,3011.7,1.39890074]
[1763531815874,1.9541207,3011.8,3011.7,7.4e-07]
[1763531817769,10.1951207,3011.8,3011.7,7.4e-07]
[1763531820573,10.1951207,3011.8,3011.7,1.39890074]
[1763531820771,8.7817207,3011.8,3011.7,1.39890074]
[1763531820973,3.74602,3012.4,3012.3,1.2931]
[1763531821166,0.53822,3012.4,3012.3,1.2931]
[1763531821965,0.53833,3011.8,3011.7,7.4e-07]
[1763531822166,3.21203898,3012.4,3011.7,1.29310074]
[1763531822776,3.21203898,3012.4,3011.8,3.2078]